[Event "Early-Titled-Tuesday-Blitz-March-12-2024"]
[Site "Chess.com"]
[Date "2024.03.12"]
[Round "1"]
[White "Roedor"]
[Black "GothamChess"]
[Result "0-1"]
[WhiteElo "2277"]
[BlackElo "2659"]
[TimeControl "180+1"]
[EndTime "8:06:37 PDT"]
[Termination "GothamChess won on time"]

1. c4 {[%clk 0:02:59.5]} 1... g6 {[%clk 0:02:58.6]} 2. g3 {[%clk 0:02:58.9]}
2... Bg7 {[%clk 0:02:59]} 3. Bg2 {[%clk 0:02:58.6]} 3... d6 {[%clk 0:02:59.7]}
4. Nc3 {[%clk 0:02:58.5]} 4... Nc6 {[%clk 0:02:57.5]} 5. Nf3 {[%clk 0:02:58.3]}
5... Bd7 {[%clk 0:02:56.5]} 6. O-O {[%clk 0:02:58.6]} 6... Qc8 {[%clk
0:02:56.7]} 7. d4 {[%clk 0:02:58.7]} 7... Bh3 {[%clk 0:02:56.3]} 8. d5 {[%clk
0:02:59.1]} 8... Ne5 {[%clk 0:02:56.2]} 9. Nxe5 {[%clk 0:02:58.7]} 9... Bxe5
{[%clk 0:02:57.1]} 10. e4 {[%clk 0:02:53.4]} 10... h5 {[%clk 0:02:55.8]} 11. f4
{[%clk 0:02:53.5]} 11... Bg7 {[%clk 0:02:46.6]} 12. f5 {[%clk 0:02:47.7]} 12...
Bxg2 {[%clk 0:02:42.1]} 13. Kxg2 {[%clk 0:02:48.3]} 13... h4 {[%clk 0:02:36.4]}
14. g4 {[%clk 0:02:46.7]} 14... h3+ {[%clk 0:02:34.2]} 15. Kh1 {[%clk 0:02:47]}
15... Nf6 {[%clk 0:02:18.8]} 16. Be3 {[%clk 0:02:46.5]} 16... c5 {[%clk
0:02:15.6]} 17. Qf3 {[%clk 0:01:45.2]} 17... gxf5 {[%clk 0:02:08.5]} 18. exf5
{[%clk 0:01:42.3]} 18... Qc7 {[%clk 0:01:54.6]} 19. Bf4 {[%clk 0:01:25.8]} 19...
O-O-O {[%clk 0:01:42.8]} 20. Rfe1 {[%clk 0:01:23.6]} 20... a6 {[%clk 0:01:41]}
21. Rac1 {[%clk 0:01:19.9]} 21... Rde8 {[%clk 0:01:39.9]} 22. Bg3 {[%clk
0:01:18.9]} 22... Nd7 {[%clk 0:01:36.4]} 23. a3 {[%clk 0:01:11.7]} 23... Be5
{[%clk 0:01:35]} 24. b4 {[%clk 0:01:10]} 24... f6 {[%clk 0:01:30.8]} 25. Na4
{[%clk 0:01:03.7]} 25... Kb8 {[%clk 0:01:26.7]} 26. bxc5 {[%clk 0:01:01.5]}
26... Nxc5 {[%clk 0:01:26.2]} 27. Nxc5 {[%clk 0:01:01.4]} 27... Qxc5 {[%clk
0:01:26.8]} 28. Bxe5 {[%clk 0:01:00.8]} 28... dxe5 {[%clk 0:01:16.7]} 29. Re4
{[%clk 0:00:51.2]} 29... Rc8 {[%clk 0:01:11.7]} 30. Rb1 {[%clk 0:00:40.3]} 30...
Ka7 {[%clk 0:01:09.7]} 31. Qb3 {[%clk 0:00:39.2]} 31... Rc7 {[%clk 0:01:07.9]}
32. Qb4 {[%clk 0:00:39.4]} 32... Qf2 {[%clk 0:01:03]} 33. Re2 {[%clk 0:00:02.5]}
33... Qxe2 {[%clk 0:00:51.9]} 34. Qb6+ {[%clk 0:00:02.6]} 34... Ka8 {[%clk
0:00:47.6]} 0-1

[Event "Early-Titled-Tuesday-Blitz-March-12-2024"]
[Site "Chess.com"]
[Date "2024.03.12"]
[Round "1"]
[White "Marcin"]
[Black "Zhigalko_Sergei"]
[Result "1-0"]
[WhiteElo "2499"]
[BlackElo "2847"]
[TimeControl "180+1"]
[EndTime "8:06:38 PDT"]
[Termination "Marcin won on time"]

1. d4 {[%clk 0:02:59.7]} 1... Nf6 {[%clk 0:02:59.9]} 2. c4 {[%clk 0:02:59.8]}
2... e6 {[%clk 0:03:00.1]} 3. g3 {[%clk 0:02:58.7]} 3... c5 {[%clk 0:03:00.1]}
4. Nf3 {[%clk 0:02:56.8]} 4... cxd4 {[%clk 0:03:00.1]} 5. Nxd4 {[%clk
0:02:57.7]} 5... Qc7 {[%clk 0:02:55]} 6. Nc3 {[%clk 0:02:56.7]} 6... a6 {[%clk
0:02:55]} 7. Bg2 {[%clk 0:02:56.9]} 7... Qxc4 {[%clk 0:02:54.9]} 8. Bf4 {[%clk
0:02:57.2]} 8... Nc6 {[%clk 0:02:54]} 9. Nb3 {[%clk 0:02:56.7]} 9... d5 {[%clk
0:02:49.7]} 10. Rc1 {[%clk 0:02:56.6]} 10... Qb4 {[%clk 0:02:32.5]} 11. a3
{[%clk 0:02:56.2]} 11... Qb6 {[%clk 0:02:28.5]} 12. e4 {[%clk 0:02:34.8]} 12...
dxe4 {[%clk 0:02:17.1]} 13. Nxe4 {[%clk 0:02:30.4]} 13... Nxe4 {[%clk
0:02:11.2]} 14. Bxe4 {[%clk 0:02:31.3]} 14... Be7 {[%clk 0:02:09.1]} 15. O-O
{[%clk 0:02:14.5]} 15... O-O {[%clk 0:02:07]} 16. Be3 {[%clk 0:01:58.7]} 16...
Qc7 {[%clk 0:01:44.2]} 17. Qc2 {[%clk 0:01:47.7]} 17... h6 {[%clk 0:01:28.9]}
18. Bxc6 {[%clk 0:01:37.6]} 18... bxc6 {[%clk 0:01:20.6]} 19. Qxc6 {[%clk
0:01:32.9]} 19... Qxc6 {[%clk 0:01:11.8]} 20. Rxc6 {[%clk 0:01:33.8]} 20... Rb8
{[%clk 0:01:10.1]} 21. Rc3 {[%clk 0:01:29.3]} 21... Bf6 {[%clk 0:00:46.3]} 22.
Bd4 {[%clk 0:01:14.4]} 22... e5 {[%clk 0:00:25.6]} 23. Ba7 {[%clk 0:01:04.7]}
23... Rb7 {[%clk 0:00:24.7]} 24. Bc5 {[%clk 0:01:03.8]} 24... Rd8 {[%clk
0:00:21.7]} 25. Bb4 {[%clk 0:01:03.7]} 25... Bh3 {[%clk 0:00:15.7]} 26. Re1
{[%clk 0:00:51.9]} 26... Rbd7 {[%clk 0:00:15.7]} 27. Nc5 {[%clk 0:00:49.6]}
27... Rd1 {[%clk 0:00:13.9]} 28. Rc1 {[%clk 0:00:49.8]} 28... Rxc1 {[%clk
0:00:12.9]} 29. Rxc1 {[%clk 0:00:49.2]} 29... Bg5 {[%clk 0:00:11.2]} 30. Re1
{[%clk 0:00:44.7]} 1-0

[Event "Early-Titled-Tuesday-Blitz-March-12-2024"]
[Site "Chess.com"]
[Date "2024.03.12"]
[Round "1"]
[White "Casper"]
[Black "FaustinoOro"]
[Result "0-1"]
[WhiteElo "2506"]
[BlackElo "2904"]
[TimeControl "180+1"]
[EndTime "8:06:41 PDT"]
[Termination "FaustinoOro won by resignation"]

1. Nf3 {[%clk 0:03:00.9]} 1... Nf6 {[%clk 0:03:00.1]} 2. b3 {[%clk 0:03:00]}
2... d5 {[%clk 0:02:59.7]} 3. Bb2 {[%clk 0:03:00.9]} 3... Bf5 {[%clk 0:02:59.6]}
4. e3 {[%clk 0:03:01.1]} 4... e6 {[%clk 0:02:58.3]} 5. c4 {[%clk 0:03:00.7]}
5... h6 {[%clk 0:02:57.7]} 6. Nc3 {[%clk 0:03:01.1]} 6... c6 {[%clk 0:02:57.7]}
7. d4 {[%clk 0:03:01.5]} 7... Bb4 {[%clk 0:02:52.2]} 8. Bd3 {[%clk 0:02:59.6]}
8... O-O {[%clk 0:02:44]} 9. O-O {[%clk 0:02:53.8]} 9... Nbd7 {[%clk 0:02:37.2]}
10. Bxf5 {[%clk 0:02:53.2]} 10... exf5 {[%clk 0:02:36.6]} 11. cxd5 {[%clk
0:02:53.8]} 11... Bxc3 {[%clk 0:02:29.5]} 12. Bxc3 {[%clk 0:02:54.3]} 12... cxd5
{[%clk 0:02:30]} 13. Rc1 {[%clk 0:02:46.9]} 13... Rc8 {[%clk 0:02:26.2]} 14. Qd3
{[%clk 0:02:46.8]} 14... Ne4 {[%clk 0:02:25.4]} 15. Bb4 {[%clk 0:02:42.4]} 15...
Re8 {[%clk 0:02:25]} 16. Qb5 {[%clk 0:02:39.4]} 16... Nb6 {[%clk 0:02:13.4]} 17.
a4 {[%clk 0:02:33.3]} 17... Qd7 {[%clk 0:02:06.2]} 18. Qxd7 {[%clk 0:02:13.5]}
18... Nxd7 {[%clk 0:02:07.1]} 19. Nd2 {[%clk 0:02:13.9]} 19... b6 {[%clk
0:02:00.2]} 20. f3 {[%clk 0:02:04.3]} 20... Ng5 {[%clk 0:01:52.3]} 21. Kf2
{[%clk 0:02:00.1]} 21... f4 {[%clk 0:01:42.9]} 22. exf4 {[%clk 0:01:46.3]} 22...
Ne6 {[%clk 0:01:42.4]} 23. Bd6 {[%clk 0:01:08.4]} 23... Nxd4 {[%clk 0:01:39.8]}
24. Rfe1 {[%clk 0:01:03.3]} 24... Nf5 {[%clk 0:01:18.2]} 25. Rxe8+ {[%clk
0:00:59.9]} 25... Rxe8 {[%clk 0:01:17.9]} 26. Rc7 {[%clk 0:01:00.5]} 26... Rd8
{[%clk 0:01:08.5]} 27. Ba3 {[%clk 0:00:52.2]} 27... Nf6 {[%clk 0:01:00.3]} 28.
g4 {[%clk 0:00:47.2]} 28... Nd4 {[%clk 0:00:59.2]} 29. Rxa7 {[%clk 0:00:35.6]}
29... Rc8 {[%clk 0:00:56.5]} 30. Bb2 {[%clk 0:00:20.9]} 30... Nc6 {[%clk
0:00:52.5]} 31. Rb7 {[%clk 0:00:18.7]} 31... d4 {[%clk 0:00:45.9]} 32. Rxb6
{[%clk 0:00:18.2]} 32... Nd5 {[%clk 0:00:46.4]} 33. Rb5 {[%clk 0:00:17.7]} 33...
Nxf4 {[%clk 0:00:44.8]} 34. Ne4 {[%clk 0:00:16.7]} 34... Nd3+ {[%clk 0:00:44.8]}
35. Ke2 {[%clk 0:00:16]} 35... Nxb2 {[%clk 0:00:45.7]} 36. a5 {[%clk 0:00:14.3]}
36... d3+ {[%clk 0:00:43.8]} 37. Kd2 {[%clk 0:00:13.9]} 37... Nd4 {[%clk
0:00:44.3]} 38. Rc5 {[%clk 0:00:14]} 38... Nxb3+ {[%clk 0:00:44.3]} 0-1

[Event "Early-Titled-Tuesday-Blitz-March-12-2024"]
[Site "Chess.com"]
[Date "2024.03.12"]
[Round "1"]
[White "vi_pranav"]
[Black "Baronessa08"]
[Result "1-0"]
[WhiteElo "3034"]
[BlackElo "2558"]
[TimeControl "180+1"]
[EndTime "8:06:47 PDT"]
[Termination "vi_pranav won by checkmate"]

1. e4 {[%clk 0:02:58.4]} 1... c5 {[%clk 0:02:58.8]} 2. Nf3 {[%clk 0:02:58.2]}
2... Nc6 {[%clk 0:02:58.5]} 3. Bb5 {[%clk 0:02:57.8]} 3... e6 {[%clk 0:02:58.3]}
4. Bxc6 {[%clk 0:02:57.3]} 4... bxc6 {[%clk 0:02:59.2]} 5. d3 {[%clk 0:02:56.9]}
5... Ne7 {[%clk 0:02:59.8]} 6. O-O {[%clk 0:02:56.5]} 6... Ng6 {[%clk
0:02:55.8]} 7. Ng5 {[%clk 0:02:56.8]} 7... f6 {[%clk 0:02:51.1]} 8. Nh3 {[%clk
0:02:56.2]} 8... d5 {[%clk 0:02:42.1]} 9. Qh5 {[%clk 0:02:51]} 9... Bd6 {[%clk
0:02:23.4]} 10. Nc3 {[%clk 0:02:48.3]} 10... O-O {[%clk 0:02:19.6]} 11. f4
{[%clk 0:02:48.4]} 11... e5 {[%clk 0:02:03.5]} 12. f5 {[%clk 0:02:10.9]} 12...
Ne7 {[%clk 0:02:02.9]} 13. Qf3 {[%clk 0:02:10.8]} 13... c4 {[%clk 0:01:46.4]}
14. dxc4 {[%clk 0:02:08.1]} 14... Ba6 {[%clk 0:01:42]} 15. b3 {[%clk 0:01:53.2]}
15... Bc5+ {[%clk 0:01:34.1]} 16. Kh1 {[%clk 0:01:42.1]} 16... Bd4 {[%clk
0:01:34.3]} 17. Rb1 {[%clk 0:01:27.5]} 17... dxc4 {[%clk 0:01:31.4]} 18. Rd1
{[%clk 0:01:27.4]} 18... cxb3 {[%clk 0:01:30.5]} 19. cxb3 {[%clk 0:01:22.2]}
19... Qa5 {[%clk 0:01:29.5]} 20. Na4 {[%clk 0:01:21.8]} 20... Rfd8 {[%clk
0:01:26]} 21. Bd2 {[%clk 0:01:12.7]} 21... Qb5 {[%clk 0:01:20.6]} 22. Qg3 {[%clk
0:01:07.2]} 22... Kh8 {[%clk 0:01:15.1]} 23. Rbc1 {[%clk 0:01:01.5]} 23... Rac8
{[%clk 0:00:55.7]} 24. Bc3 {[%clk 0:00:46]} 24... Qe2 {[%clk 0:00:44.7]} 25.
Bxd4 {[%clk 0:00:37.5]} 25... Rxd4 {[%clk 0:00:40.7]} 26. Re1 {[%clk 0:00:37.6]}
26... Qxa2 {[%clk 0:00:38]} 27. Nc5 {[%clk 0:00:38]} 27... Bb5 {[%clk
0:00:20.9]} 28. Ne6 {[%clk 0:00:37.9]} 28... Rg8 {[%clk 0:00:21.1]} 29. Nxd4
{[%clk 0:00:31.5]} 29... exd4 {[%clk 0:00:22]} 30. Nf4 {[%clk 0:00:32.1]} 30...
Nc8 {[%clk 0:00:15.3]} 31. Ng6+ {[%clk 0:00:29.6]} 31... hxg6 {[%clk 0:00:14.1]}
32. Qh3# {[%clk 0:00:30.5]} 1-0

[Event "Early-Titled-Tuesday-Blitz-March-12-2024"]
[Site "Chess.com"]
[Date "2024.03.12"]
[Round "1"]
[White "suyu28"]
[Black "RebelJohnny"]
[Result "1-0"]
[WhiteElo "2905"]
[BlackElo "2508"]
[TimeControl "180+1"]
[EndTime "8:06:47 PDT"]
[Termination "suyu28 won on time"]

1. d4 {[%clk 0:02:55.8]} 1... d5 {[%clk 0:02:58.3]} 2. c4 {[%clk 0:02:55.3]}
2... dxc4 {[%clk 0:02:59.2]} 3. Nf3 {[%clk 0:02:54.5]} 3... Nf6 {[%clk
0:02:58.8]} 4. e3 {[%clk 0:02:54]} 4... c5 {[%clk 0:02:59]} 5. Bxc4 {[%clk
0:02:46]} 5... e6 {[%clk 0:02:59]} 6. O-O {[%clk 0:02:43.7]} 6... a6 {[%clk
0:02:59.4]} 7. b3 {[%clk 0:02:40.4]} 7... b5 {[%clk 0:02:55.4]} 8. Be2 {[%clk
0:02:39.6]} 8... Nbd7 {[%clk 0:02:33.7]} 9. Bb2 {[%clk 0:02:28.6]} 9... Bb7
{[%clk 0:02:31.6]} 10. Nbd2 {[%clk 0:02:28]} 10... Be7 {[%clk 0:02:18.7]} 11. a4
{[%clk 0:02:27.3]} 11... b4 {[%clk 0:02:18.9]} 12. Rc1 {[%clk 0:02:17.1]} 12...
Rc8 {[%clk 0:02:13.5]} 13. Nc4 {[%clk 0:02:12]} 13... O-O {[%clk 0:02:08.2]} 14.
Nfe5 {[%clk 0:02:06.6]} 14... Nxe5 {[%clk 0:01:04.5]} 15. dxe5 {[%clk
0:02:05.5]} 15... Nd5 {[%clk 0:01:04.6]} 16. Qc2 {[%clk 0:01:56.1]} 16... Qc7
{[%clk 0:00:47.7]} 17. Rfd1 {[%clk 0:01:49]} 17... Rfd8 {[%clk 0:00:46.4]} 18.
a5 {[%clk 0:01:39.8]} 18... Bf8 {[%clk 0:00:34.2]} 19. Bd3 {[%clk 0:01:38.4]}
19... g6 {[%clk 0:00:34]} 20. h4 {[%clk 0:01:28.8]} 20... Ne7 {[%clk 0:00:18.8]}
21. Nd6 {[%clk 0:01:23]} 21... Nf5 {[%clk 0:00:19.2]} 22. Bxf5 {[%clk
0:01:18.6]} 22... exf5 {[%clk 0:00:18.2]} 23. Nxc8 {[%clk 0:01:16.6]} 23... Rxc8
{[%clk 0:00:17.9]} 24. Qc4 {[%clk 0:01:05]} 24... Re8 {[%clk 0:00:09.9]} 25. h5
{[%clk 0:00:51.9]} 25... Qxa5 {[%clk 0:00:08.4]} 26. hxg6 {[%clk 0:00:49.2]}
26... hxg6 {[%clk 0:00:08.5]} 27. Rd7 {[%clk 0:00:46.9]} 27... Re7 {[%clk
0:00:05]} 28. e6 {[%clk 0:00:39.1]} 28... Rxd7 {[%clk 0:00:03.1]} 29. exd7
{[%clk 0:00:38.6]} 29... Qc7 {[%clk 0:00:03.8]} 30. Qh4 {[%clk 0:00:35.8]} 1-0

[Event "Early-Titled-Tuesday-Blitz-March-12-2024"]
[Site "Chess.com"]
[Date "2024.03.12"]
[Round "1"]
[White "rhwr"]
[Black "luckyswitchback"]
[Result "0-1"]
[WhiteElo "2287"]
[BlackElo "2662"]
[TimeControl "180+1"]
[EndTime "8:07:02 PDT"]
[Termination "luckyswitchback won by resignation"]

1. e4 {[%clk 0:02:59.9]} 1... e6 {[%clk 0:02:59.7]} 2. Nf3 {[%clk 0:02:59.1]}
2... d5 {[%clk 0:03:00.6]} 3. e5 {[%clk 0:02:59.7]} 3... c5 {[%clk 0:02:58.2]}
4. b4 {[%clk 0:03:00]} 4... d4 {[%clk 0:02:46.8]} 5. bxc5 {[%clk 0:02:42.8]}
5... Bxc5 {[%clk 0:02:47.7]} 6. Bb5+ {[%clk 0:02:39.8]} 6... Bd7 {[%clk
0:02:46.4]} 7. a4 {[%clk 0:02:36.8]} 7... Ne7 {[%clk 0:02:45.6]} 8. O-O {[%clk
0:02:36.8]} 8... O-O {[%clk 0:02:44.7]} 9. c3 {[%clk 0:02:33.7]} 9... dxc3
{[%clk 0:02:43.6]} 10. Nxc3 {[%clk 0:02:29.4]} 10... Bc6 {[%clk 0:02:41.6]} 11.
Bxc6 {[%clk 0:02:20.2]} 11... Nbxc6 {[%clk 0:02:42.5]} 12. Ne4 {[%clk
0:02:20.6]} 12... Bb4 {[%clk 0:02:39]} 13. d4 {[%clk 0:02:12.6]} 13... Nd5
{[%clk 0:02:35.3]} 14. Bd2 {[%clk 0:01:56.1]} 14... Be7 {[%clk 0:02:34]} 15. Rb1
{[%clk 0:01:50.7]} 15... b6 {[%clk 0:02:16.1]} 16. Rc1 {[%clk 0:01:45.8]} 16...
Rc8 {[%clk 0:02:15.7]} 17. h3 {[%clk 0:01:33.6]} 17... h6 {[%clk 0:02:15.8]} 18.
Qe2 {[%clk 0:01:28.3]} 18... Qd7 {[%clk 0:02:14.6]} 19. Qb5 {[%clk 0:01:23.4]}
19... Rfd8 {[%clk 0:02:03.5]} 20. Rc4 {[%clk 0:01:07.5]} 20... Qb7 {[%clk
0:01:42.9]} 21. Rfc1 {[%clk 0:01:05]} 21... a6 {[%clk 0:01:43]} 22. Qb2 {[%clk
0:01:00.6]} 22... b5 {[%clk 0:01:38.4]} 23. axb5 {[%clk 0:00:48.9]} 23... axb5
{[%clk 0:01:39.3]} 24. R4c2 {[%clk 0:00:45.8]} 24... b4 {[%clk 0:01:17.4]} 25.
Rb1 {[%clk 0:00:37.1]} 25... Na5 {[%clk 0:01:14]} 26. Rxc8 {[%clk 0:00:34.8]}
26... Rxc8 {[%clk 0:01:14.9]} 27. Qa2 {[%clk 0:00:27.7]} 27... Nc4 {[%clk
0:01:09.2]} 28. Be1 {[%clk 0:00:27]} 28... Nf4 {[%clk 0:00:59.7]} 29. Nd6 {[%clk
0:00:21.2]} 29... Nxd6 {[%clk 0:00:58.2]} 30. Rxb4 {[%clk 0:00:20.9]} 30... Qd5
{[%clk 0:00:40.8]} 31. Qxd5 {[%clk 0:00:19.7]} 31... Nxd5 {[%clk 0:00:41.7]} 32.
exd6 {[%clk 0:00:19.1]} 32... Nxb4 {[%clk 0:00:39.9]} 33. Bxb4 {[%clk
0:00:18.8]} 33... Bf8 {[%clk 0:00:33.4]} 34. Ne5 {[%clk 0:00:16.5]} 34... Rd8
{[%clk 0:00:22.9]} 35. d7 {[%clk 0:00:12.3]} 35... Bxb4 {[%clk 0:00:21.3]} 0-1

[Event "Early-Titled-Tuesday-Blitz-March-12-2024"]
[Site "Chess.com"]
[Date "2024.03.12"]
[Round "1"]
[White "AlessiaSanteramo"]
[Black "ahkashefi2800"]
[Result "0-1"]
[WhiteElo "2249"]
[BlackElo "2644"]
[TimeControl "180+1"]
[EndTime "8:07:02 PDT"]
[Termination "ahkashefi2800 won by checkmate"]

1. e4 {[%clk 0:02:45.8]} 1... c6 {[%clk 0:02:56.8]} 2. d4 {[%clk 0:02:44.9]}
2... d5 {[%clk 0:02:57.1]} 3. Nc3 {[%clk 0:02:44.6]} 3... dxe4 {[%clk
0:02:48.1]} 4. Nxe4 {[%clk 0:02:45.5]} 4... Nd7 {[%clk 0:02:47.1]} 5. Ng5 {[%clk
0:02:42.2]} 5... Ngf6 {[%clk 0:02:41.8]} 6. Bd3 {[%clk 0:02:29.1]} 6... h6
{[%clk 0:02:20.2]} 7. Ne6 {[%clk 0:01:54.8]} 7... Qb6 {[%clk 0:02:13.3]} 8. Nf3
{[%clk 0:01:20.7]} 8... fxe6 {[%clk 0:01:48.4]} 9. Bg6+ {[%clk 0:01:19.6]} 9...
Kd8 {[%clk 0:01:48.2]} 10. O-O {[%clk 0:00:54.8]} 10... Qc7 {[%clk 0:01:02.9]}
11. Ne5 {[%clk 0:00:48.3]} 11... Nxe5 {[%clk 0:01:00.6]} 12. dxe5+ {[%clk
0:00:48.7]} 12... Nd5 {[%clk 0:01:00.6]} 13. c4 {[%clk 0:00:44.3]} 13... Qxe5
{[%clk 0:00:59.1]} 14. cxd5 {[%clk 0:00:30.2]} 14... exd5 {[%clk 0:00:56.9]} 15.
Qf3 {[%clk 0:00:25.8]} 15... Qf6 {[%clk 0:00:55]} 16. Qg3 {[%clk 0:00:20.2]}
16... e5 {[%clk 0:00:53.1]} 17. f4 {[%clk 0:00:15.5]} 17... e4 {[%clk
0:00:48.3]} 18. Be3 {[%clk 0:00:15.4]} 18... Bd6 {[%clk 0:00:47.1]} 19. Rad1
{[%clk 0:00:13.8]} 19... Qe7 {[%clk 0:00:44.1]} 20. Rd2 {[%clk 0:00:08.2]} 20...
Rf8 {[%clk 0:00:41.9]} 21. Rfd1 {[%clk 0:00:08.3]} 21... Bf5 {[%clk 0:00:41.5]}
22. Bxf5 {[%clk 0:00:06.3]} 22... Rxf5 {[%clk 0:00:42.4]} 23. Qg6 {[%clk
0:00:05.9]} 23... Rf6 {[%clk 0:00:42.2]} 24. Qh7 {[%clk 0:00:05.2]} 24... Kc7
{[%clk 0:00:37.2]} 25. Bd4 {[%clk 0:00:05.4]} 25... Rxf4 {[%clk 0:00:33.1]} 26.
Qg6 {[%clk 0:00:04.5]} 26... Be5 {[%clk 0:00:29.8]} 27. Bxe5+ {[%clk 0:00:04]}
27... Qxe5 {[%clk 0:00:30.7]} 28. g3 {[%clk 0:00:04.7]} 28... Rf3 {[%clk
0:00:29.1]} 29. b4 {[%clk 0:00:05.1]} 29... Raf8 {[%clk 0:00:28.2]} 30. b5
{[%clk 0:00:05.4]} 30... Qf6 {[%clk 0:00:26.9]} 31. Qg4 {[%clk 0:00:04.3]} 31...
Rf1+ {[%clk 0:00:26.5]} 32. Kg2 {[%clk 0:00:03.9]} 32... Rf2+ {[%clk 0:00:26.5]}
33. Kg1 {[%clk 0:00:03.8]} 33... Rxd2 {[%clk 0:00:25.4]} 34. Rxd2 {[%clk
0:00:01.5]} 34... Qf1# {[%clk 0:00:25.1]} 0-1

[Event "Early-Titled-Tuesday-Blitz-March-12-2024"]
[Site "Chess.com"]
[Date "2024.03.12"]
[Round "1"]
[White "QuintilianoR"]
[Black "emeli_chess"]
[Result "1-0"]
[WhiteElo "2736"]
[BlackElo "2401"]
[TimeControl "180+1"]
[EndTime "8:07:03 PDT"]
[Termination "QuintilianoR won by resignation"]

1. Nf3 {[%clk 0:03:00.9]} 1... f5 {[%clk 0:02:59.3]} 2. d4 {[%clk 0:03:01]} 2...
Nf6 {[%clk 0:02:59]} 3. Bf4 {[%clk 0:03:01]} 3... g6 {[%clk 0:02:56.9]} 4. e3
{[%clk 0:03:01.2]} 4... Bg7 {[%clk 0:02:57]} 5. h3 {[%clk 0:03:01.9]} 5... O-O
{[%clk 0:02:55.8]} 6. c4 {[%clk 0:03:02.2]} 6... d6 {[%clk 0:02:55.2]} 7. Nc3
{[%clk 0:03:02.5]} 7... c6 {[%clk 0:02:46.6]} 8. Qc2 {[%clk 0:03:01.4]} 8...
Nbd7 {[%clk 0:02:43.1]} 9. Bh2 {[%clk 0:02:54]} 9... Qe8 {[%clk 0:02:37.7]} 10.
d5 {[%clk 0:02:24.4]} 10... e5 {[%clk 0:02:23.7]} 11. dxe6 {[%clk 0:02:23.9]}
11... Qxe6 {[%clk 0:02:23.5]} 12. O-O-O {[%clk 0:02:09.4]} 12... Ne8 {[%clk
0:02:17.2]} 13. Be2 {[%clk 0:01:59.7]} 13... Ndf6 {[%clk 0:02:15.2]} 14. c5
{[%clk 0:01:52.6]} 14... d5 {[%clk 0:02:11.5]} 15. Nd4 {[%clk 0:01:42.2]} 15...
Qe7 {[%clk 0:02:07.2]} 16. Nb3 {[%clk 0:01:40.3]} 16... Ne4 {[%clk 0:02:00.9]}
17. Nxe4 {[%clk 0:01:38.5]} 17... fxe4 {[%clk 0:01:58.2]} 18. Rhf1 {[%clk
0:01:39.2]} 18... Kh8 {[%clk 0:01:39]} 19. Kb1 {[%clk 0:01:38.9]} 19... a5
{[%clk 0:01:34.8]} 20. Nd4 {[%clk 0:01:38.5]} 20... a4 {[%clk 0:01:29.8]} 21.
Bg3 {[%clk 0:01:31.6]} 21... Ra5 {[%clk 0:01:24.7]} 22. Rc1 {[%clk 0:01:31.8]}
22... a3 {[%clk 0:01:18.1]} 23. b4 {[%clk 0:01:28.6]} 23... Ra8 {[%clk
0:01:17.4]} 24. Rfd1 {[%clk 0:01:26.7]} 24... Qg5 {[%clk 0:01:10.9]} 25. h4
{[%clk 0:01:13.1]} 25... Qe7 {[%clk 0:01:09.6]} 26. h5 {[%clk 0:01:13.4]} 26...
g5 {[%clk 0:01:07.1]} 27. h6 {[%clk 0:01:08.8]} 27... Bxh6 {[%clk 0:01:06.9]}
28. Rh1 {[%clk 0:01:08.6]} 28... Bg7 {[%clk 0:01:07]} 29. f3 {[%clk 0:01:07.3]}
29... Nf6 {[%clk 0:00:50]} 30. Bd6 {[%clk 0:01:03.8]} 30... Qf7 {[%clk
0:00:50.3]} 31. Bxf8 {[%clk 0:01:04]} 31... Qxf8 {[%clk 0:00:50.7]} 32. fxe4
{[%clk 0:01:02.5]} 32... Nxe4 {[%clk 0:00:50.5]} 33. Bd3 {[%clk 0:01:02.7]}
33... Qe7 {[%clk 0:00:45]} 34. Bxe4 {[%clk 0:00:59.1]} 34... dxe4 {[%clk
0:00:44.7]} 35. Rcf1 {[%clk 0:00:55.9]} 35... Bd7 {[%clk 0:00:41.4]} 36. Nf5
{[%clk 0:00:54.5]} 36... Bxf5 {[%clk 0:00:37.6]} 37. Rxf5 {[%clk 0:00:55.4]}
37... Re8 {[%clk 0:00:32.5]} 38. g4 {[%clk 0:00:52.7]} 38... h6 {[%clk
0:00:28.5]} 39. Qb3 {[%clk 0:00:52]} 39... Qd7 {[%clk 0:00:25.3]} 40. Rd1 {[%clk
0:00:50]} 40... Qc7 {[%clk 0:00:19]} 41. Rd6 {[%clk 0:00:48]} 41... b6 {[%clk
0:00:17.1]} 42. Rf7 {[%clk 0:00:46.5]} 42... Qb8 {[%clk 0:00:15.4]} 43. Rxg7
{[%clk 0:00:42.5]} 43... Kxg7 {[%clk 0:00:15]} 44. Rd7+ {[%clk 0:00:42.8]} 44...
Kh8 {[%clk 0:00:12.1]} 45. Qf7 {[%clk 0:00:42.9]} 1-0

[Event "Early-Titled-Tuesday-Blitz-March-12-2024"]
[Site "Chess.com"]
[Date "2024.03.12"]
[Round "1"]
[White "nelsi"]
[Black "vovachesss"]
[Result "0-1"]
[WhiteElo "2436"]
[BlackElo "2788"]
[TimeControl "180+1"]
[EndTime "8:07:05 PDT"]
[Termination "vovachesss won by checkmate"]

1. e4 {[%clk 0:02:58.7]} 1... c6 {[%clk 0:02:56.7]} 2. d4 {[%clk 0:02:54.2]}
2... d5 {[%clk 0:02:57.6]} 3. Nc3 {[%clk 0:02:44.6]} 3... dxe4 {[%clk
0:02:55.9]} 4. Bc4 {[%clk 0:02:41]} 4... Nf6 {[%clk 0:02:54.2]} 5. f3 {[%clk
0:02:41]} 5... e3 {[%clk 0:02:51.2]} 6. Bxe3 {[%clk 0:02:40.3]} 6... Bf5 {[%clk
0:02:51.7]} 7. Nge2 {[%clk 0:02:40]} 7... e6 {[%clk 0:02:52.2]} 8. Ng3 {[%clk
0:02:40.2]} 8... Bg6 {[%clk 0:02:52]} 9. Qe2 {[%clk 0:02:38.1]} 9... Be7 {[%clk
0:02:49.5]} 10. O-O-O {[%clk 0:02:34]} 10... b5 {[%clk 0:02:42.3]} 11. Bd3
{[%clk 0:02:31.7]} 11... Qa5 {[%clk 0:02:36.5]} 12. Kb1 {[%clk 0:02:24.7]} 12...
Na6 {[%clk 0:02:14.8]} 13. Nge4 {[%clk 0:01:32.1]} 13... Nb4 {[%clk 0:01:54]}
14. Nxf6+ {[%clk 0:00:51.2]} 14... gxf6 {[%clk 0:01:24]} 15. Bxg6 {[%clk
0:00:52.1]} 15... hxg6 {[%clk 0:01:23]} 16. a3 {[%clk 0:00:31.3]} 16... Nd5
{[%clk 0:01:22.1]} 17. Nxd5 {[%clk 0:00:31.4]} 17... cxd5 {[%clk 0:01:21.7]} 18.
Bd2 {[%clk 0:00:30.5]} 18... b4 {[%clk 0:01:14.8]} 19. Bxb4 {[%clk 0:00:28.1]}
19... Bxb4 {[%clk 0:01:14.6]} 20. axb4 {[%clk 0:00:28.3]} 20... Qxb4 {[%clk
0:01:15.5]} 21. Qd2 {[%clk 0:00:28.9]} 21... Qb6 {[%clk 0:01:04.9]} 22. Qc3
{[%clk 0:00:21.2]} 22... O-O {[%clk 0:00:44.2]} 23. h4 {[%clk 0:00:21.4]} 23...
Rfc8 {[%clk 0:00:42.9]} 24. Qa3 {[%clk 0:00:21.5]} 24... Rc4 {[%clk 0:00:39.7]}
25. h5 {[%clk 0:00:16.2]} 25... g5 {[%clk 0:00:16.3]} 26. h6 {[%clk 0:00:15.7]}
26... Qb4 {[%clk 0:00:13.8]} 27. Qd3 {[%clk 0:00:12.8]} 27... Rb8 {[%clk
0:00:12.1]} 28. b3 {[%clk 0:00:13.3]} 28... Rc3 {[%clk 0:00:10]} 29. h7+ {[%clk
0:00:12.3]} 29... Kh8 {[%clk 0:00:10.2]} 30. Qa6 {[%clk 0:00:11.2]} 30... Rxb3+
{[%clk 0:00:07.9]} 31. Kc1 {[%clk 0:00:09.1]} 31... Rb1# {[%clk 0:00:08]} 0-1